Workbook

Sheet 1
D1: 表1
A2: 部门收支总表
D3: 单位：元
A4: 收 入 | C4: 支 出
A5: 项 目 | B5: 2019年预算数 | C5: 项 目 | D5: 2019年预算数
A6: 一、一般公共预算拨款收入 | B6: 11,104,310 | C6: 一、一般公共服务支出 | D6: 9,139,812
A7: 二、政府性基金预算拨款收入 | B7: 0 | C7: 二、外交支出 | D7: 0
A8: 三、国有资本经营预算拨款收入 | B8: 0 | C8: 三、国防支出 | D8: 0
A9: 四、事业收入 | B9: 0 | C9: 四、公共安全支出 | D9: 0
A10: 五、事业单位经营收入 | B10: 0 | C10: 五、教育支出 | D10: 0
A11: 六、其他收入 | B11: 0 | C11: 六、科学技术支出 | D11: 0
C12: 七、文化体育与传媒支出 | D12: 0
C13: 八、社会保障和就业支出 | D13: 1,045,766
C14: 九、社会保险基金支出 | D14: 0
C15: 十、医疗卫生与计划生育支出 | D15: 354,125
C16: 十一、节能环保支出 | D16: 0
C17: 十二、城乡社区支出 | D17: 0
C18: 十三、农林水支出 | D18: 40,000
C19: 十四、交通运输支出 | D19: 0
C20: 十五、资源勘探信息等支出 | D20: 0
C21: 十六、商业服务业等支出 | D21: 0
C22: 十七、金融支出 | D22: 0
C23: 十八、援助其他地区支出 | D23: 0
C24: 十九、国土海洋气象等支出 | D24: 0
C25: 二十、住房保障支出 | D25: 524,607
C26: 二十一、粮油物资储备支出 | D26: 0
C27: 二十二、国有资本经营预算支出 | D27: 0
C28: 二十三、预备费 | D28: 0
C29: 二十四、其他支出 | D29: 0
C30: 二十五、转移性支出 | D30: 0
C31: 二十六、债务还本支出 | D31: 0
C32: 二十七、债务利息支出 | D32: 0
C33: 二十八、债务发行费用支出 | D33: 0
A35: 本 年 收 入 合 计 | B35: =SUM(B6:B33) -> 11,104,310 | C35: 本 年 支 出 合 计 | D35: =SUM(D6:D33) -> 11,104,310
A36: 七、用事业基金弥补收支差额 | B36: 0 | C36: 二十九、事业单位结余分配 | D36: 0
A37: 八、上年结转 | C37: 其中：转入事业基金 | D37: 0
C38: 三十、结转下年 | D38: 0
A40: 收 入 总 计 | B40: =SUM(B35:B37) -> 11,104,310 | C40: 支 出 总 计 | D40: =SUM(D35,D36,D38) -> 11,104,310

Sheet 1-1
T1: 表1-1
A2: 部门收入总表
T3: 单位：元
A4: 项 目 | F4: 合计 | G4: 上年结转 | H4: 一般公共预算拨款收入 | I4: 政府性基金预算拨款收入 | J4: 国有资本经营预算拨款收入 | K4: 事业收入 | M4: 事业单位经营收入 | N4: 转移性收入 | S4: 其他收入 | T4: 用事业基金弥补收支差额
A5: 科目编码 | D5: 单位代码 | E5: 单位名称 （科目） | K5: 金额 | L5: 其中：教育收费 | N5: 小计 | O5: 上级补助收入 | P5: 附属单位上缴收入 | Q5: 从其他部门取得的收入 | R5: 从不同级政府取得的收入
A6: 类 | B6: 款 | C6: 项
A7: ** | B7: ** | C7: ** | D7: ** | E7: ** | F7: 1 | G7: 2 | H7: 3 | I7: 4 | J7: 5 | K7: 6 | L7: 7 | M7: 8 | N7: 9 | O7: 10 | P7: 11 | Q7: 12 | R7: 13 | S7: 14 | T7: 15
E8: 合计 | F8: 11,104,310 | H8: 11,104,310
D9: 103101 | E9: 通川区政府办公室机关 | F9: 11,104,310 | H9: 11,104,310
A10: 201 | B10: 03 | C10: 01 | D10: 103101 | E10: 行政运行（政府办公厅（室）及相关机构事务） | F10: 5,550,812 | H10: 5,550,812
A11: 201 | B11: 03 | C11: 02 | D11: 103101 | E11: 一般行政管理事务（政府办公厅（室）及相关机构事务） | F11: 3,016,000 | H11: 3,016,000
A12: 201 | B12: 03 | C12: 99 | D12: 103101 | E12: 其他政府办公厅（室）及相关机构事务支出 | F12: 510,000 | H12: 510,000
A13: 201 | B13: 11 | C13: 05 | D13: 103101 | E13: 派驻派出机构 | F13: 63,000 | H13: 63,000
A14: 208 | B14: 05 | C14: 05 | D14: 103101 | E14: 机关事业单位基本养老保险缴费支出 | F14: 874,350 | H14: 874,350
A15: 208 | B15: 10 | C15: 02 | D15: 103101 | E15: 老年福利 | F15: 155,000 | H15: 155,000
A16: 208 | B16: 99 | C16: 01 | D16: 103101 | E16: 其他社会保障和就业支出 | F16: 16,416 | H16: 16,416
A17: 210 | B17: 11 | C17: 01 | D17: 103101 | E17: 行政单位医疗 | F17: 311,580 | H17: 311,580
A18: 210 | B18: 11 | C18: 02 | D18: 103101 | E18: 事业单位医疗 | F18: 42,545 | H18: 42,545
A19: 213 | B19: 05 | C19: 99 | D19: 103101 | E19: 其他扶贫支出 | F19: 40,000 | H19: 40,000
A20: 221 | B20: 02 | C20: 01 | D20: 103101 | E20: 住房公积金 | F20: 524,607 | H20: 524,607

Sheet 1-2
J1: 表1-2
A2: 部门支出总表
J3: 单位：元
A4: 项 目 | F4: 合计 | G4: 基本支出 | H4: 项目支出 | I4: 上缴上级支出 | J4: 对附属单位补助支出
A5: 科目编码 | D5: 单位代码 | E5: 单位名称 （科目）
A6: 类 | B6: 款 | C6: 项
A7: ** | B7: ** | C7: ** | D7: ** | E7: ** | F7: 1 | G7: 2 | H7: 3 | I7: 4 | J7: 5
E8: 合计 | F8: 11,104,310 | G8: 7,360,310 | H8: 3,744,000
D9: 103101 | E9: 通川区政府办公室机关 | F9: 11,104,310 | G9: 7,360,310 | H9: 3,744,000
A10: 201 | B10: 03 | C10: 01 | D10: 103101 | E10: 行政运行（政府办公厅（室）及相关机构事务） | F10: 5,550,812 | G10: 5,550,812 | H10: 0
A11: 201 | B11: 03 | C11: 02 | D11: 103101 | E11: 一般行政管理事务（政府办公厅（室）及相关机构事务） | F11: 3,016,000 | G11: 0 | H11: 3,016,000
A12: 201 | B12: 03 | C12: 99 | D12: 103101 | E12: 其他政府办公厅（室）及相关机构事务支出 | F12: 510,000 | G12: 0 | H12: 510,000
A13: 201 | B13: 11 | C13: 05 | D13: 103101 | E13: 派驻派出机构 | F13: 63,000 | G13: 0 | H13: 63,000
A14: 208 | B14: 05 | C14: 05 | D14: 103101 | E14: 机关事业单位基本养老保险缴费支出 | F14: 874,350 | G14: 874,350 | H14: 0
A15: 208 | B15: 10 | C15: 02 | D15: 103101 | E15: 老年福利 | F15: 155,000 | G15: 0 | H15: 155,000
A16: 208 | B16: 99 | C16: 01 | D16: 103101 | E16: 其他社会保障和就业支出 | F16: 16,416 | G16: 16,416 | H16: 0
A17: 210 | B17: 11 | C17: 01 | D17: 103101 | E17: 行政单位医疗 | F17: 311,580 | G17: 311,580 | H17: 0
A18: 210 | B18: 11 | C18: 02 | D18: 103101 | E18: 事业单位医疗 | F18: 42,545 | G18: 42,545 | H18: 0
A19: 213 | B19: 05 | C19: 99 | D19: 103101 | E19: 其他扶贫支出 | F19: 40,000 | G19: 40,000 | H19: 0
A20: 221 | B20: 02 | C20: 01 | D20: 103101 | E20: 住房公积金 | F20: 524,607 | G20: 524,607 | H20: 0

Sheet 2
H1: 表2
A2: 财政拨款收支预算总表
H3: 单位：元
A4: 收 入 | C4: 支 出
A5: 项 目 | B5: 2019年预算数 | C5: 项 目 | D5: 合计 | E5: 一般公共预算 | F5: 政府性基金预算 | G5: 国有资本经营预算 | H5: 上年财政拨款资金结转
A6: 一、本年收入 | C6: 一、本年支出 | D6: =SUM(D7:D34) -> 11,104,310 | E6: =SUM(E7:E34) -> 11,104,310
A7: 一般公共预算拨款收入 | B7: 11,104,310 | C7: 一般公共服务支出 | D7: =SUM(E7:H7) -> 9,139,812 | E7: 9,139,812
A8: 政府性基金预算拨款收入 | C8: 外交支出 | D8: 0 | E8: 0
A9: 国有资本经营预算拨款收入 | C9: 国防支出 | D9: 0 | E9: 0
A10: 二、上年结转 | C10: 公共安全支出 | D10: 0 | E10: 0
A11: 一般公共预算拨款收入 | C11: 教育支出 | D11: 0 | E11: 0
A12: 政府性基金预算拨款收入 | B12: 0 | C12: 科学技术支出 | D12: 0 | E12: 0
A13: 国有资本经营预算拨款收入 | B13: 0 | C13: 文化体育与传媒支出 | D13: 0 | E13: 0
A14: 上年财政拨款资金结转 | B14: 0 | C14: 社会保障和就业支出 | D14: 1,045,766 | E14: 1,045,766
C15: 社会保险基金支出 | D15: 0 | E15: 0
C16: 医疗卫生与计划生育支出 | D16: 354,125 | E16: 354,125
C17: 节能环保支出 | D17: 0 | E17: 0
C18: 城乡社区支出 | D18: 0 | E18: 0
C19: 农林水支出 | D19: 40,000 | E19: 40,000
C20: 交通运输支出 | D20: 0 | E20: 0
C21: 资源勘探信息等支出 | D21: 0 | E21: 0
C22: 商业服务业等支出 | D22: 0 | E22: 0
C23: 金融支出 | D23: 0 | E23: 0
C24: 援助其他地区支出 | D24: 0 | E24: 0
C25: 国土海洋气象等支出 | D25: 0 | E25: 0
C26: 住房保障支出 | D26: 524,607 | E26: 524,607
C27: 粮油物资储备支出 | D27: 0 | E27: 0
C28: 国有资本经营预算支出 | D28: 0 | E28: 0
C29: 预备费 | D29: 0 | E29: 0
C30: 其他支出 | D30: 0 | E30: 0
C31: 转移性支出 | D31: 0 | E31: 0
C32: 债务还本支出 | D32: 0 | E32: 0
C33: 债务利息支出 | D33: 0 | E33: 0
C34: 债务发行费用支出 | D34: 0 | E34: 0
C36: 二、结转下年
A38: 收 入 总 计 | B38: =SUM(B6,B10) -> 0 | C38: 支 出 总 计 | D38: =D6+D36 -> 11,104,310 | E38: =E6+E36 -> 11,104,310

Sheet 2-1
AB1: 表2-1
A2: 财政拨款支出预算表（政府经济分类科目）
AB3: 单位：元
A4: 项 目 | E4: 总计 | F4: 当年财政拨款安排 | P4: 上年结转安排
A5: 科目编码 | C5: 单位代码 | D5: 单位名称（科目） | F5: 合计 | G5: 一般公共预算拨款 | J5: 政府性基金安排 | M5: 国有资本经营预算安排 | P5: 合计 | Q5: 一般公共预算拨款 | T5: 政府性基金安排 | W5: 国有资本经营预算安排 | Z5: 上年财政拨款资金结转
A6: 类 | B6: 款 | G6: 小计 | H6: 基本支出 | I6: 项目支出 | J6: 小计 | K6: 基本支出 | L6: 项目支出 | M6: 小计 | N6: 基本支出 | O6: 项目支出 | Q6: 小计 | R6: 基本支出 | S6: 项目支出 | T6: 小计 | U6: 基本支出 | V6: 项目支出 | W6: 小计 | X6: 基本支出 | Y6: 项目支出 | Z6: 小计 | AA6: 基本支出 | AB6: 项目支出
A7: ** | B7: ** | C7: ** | D7: ** | E7: =E8+E13+E24+E32+E39+E43+E53 -> 11,104,310 | F7: =G7 -> 11,104,310 | G7: =G8+G13+G24+G32+G39+G43+G53 -> 11,104,310 | H7: =H8+H13+H24+H32+H39+H43+H53 -> 7,360,310 | I7: =I8+I13+I24+I32+I39+I43+I53 -> 3,744,000
A8: 501 | D8: 机关工资福利支出 | E8: =F8 -> 6,770,318 | F8: =G8 -> 6,770,318 | G8: =H8+I8 -> 6,770,318 | H8: 6,757,118 | I8: 13,200
A9: 501 | B9: 01 | D9: 工资奖金津补贴 | G9: 4,230,900 | H9: 4,230,900 | I9: 0
A10: 501 | B10: 02 | D10: 社会保障缴费 | G10: 1,244,891 | H10: 1,244,891 | I10: 0
A11: 501 | B11: 03 | D11: 住房公积金 | G11: 524,607 | H11: 524,607 | I11: 0
A12: 501 | B12: 99 | D12: 其他工资福利支出 | G12: 769,920 | H12: 756,720 | I12: 13,200
A13: 502 | D13: 机关商品和服务支出 | E13: =F13 -> 4,034,692 | F13: =G13 -> 4,034,692 | G13: 4,034,692 | H13: 567,492 | I13: 3,467,200
A14: 502 | B14: 01 | D14: 办公经费 | G14: 3,144,292 | H14: 561,492 | I14: 2,582,800
A15: 502 | B15: 02 | D15: 会议费 | G15: 107,400 | H15: 0 | I15: 107,400
A16: 502 | B16: 03 | D16: 培训费 | G16: 5,000 | H16: 0 | I16: 5,000
A17: 502 | B17: 04 | D17: 专用材料购置费 | G17: 0 | H17: 0 | I17: 0
A18: 502 | B18: 05 | D18: 委托业务费 | G18: 150,000 | H18: 0 | I18: 150,000
A19: 502 | B19: 06 | D19: 公务接待费 | G19: 108,000 | H19: 0 | I19: 108,000
A20: 502 | B20: 07 | D20: 因公出国（境）费用 | G20: 20,000 | H20: 0 | I20: 20,000
A21: 502 | B21: 08 | D21: 公务用车运行维护费 | G21: 80,000 | H21: 0 | I21: 80,000
A22: 502 | B22: 09 | D22: 维修（护）费 | G22: 280,000 | H22: 0 | I22: 280,000
A23: 502 | B23: 99 | D23: 其他商品和服务支出 | G23: 140,000 | H23: 6,000 | I23: 134,000
A24: 503 | D24: 机关资本性支出（一） | E24: =F24 -> 90,000 | F24: =G24 -> 90,000 | G24: 90,000 | H24: 0 | I24: 90,000
A25: 503 | B25: 01 | D25: 房屋建筑物构建 | G25: 0 | H25: 0 | I25: 0
A26: 503 | B26: 02 | D26: 基础设施建设 | G26: 0 | H26: 0 | I26: 0
A27: 503 | B27: 03 | D27: 公务用车购置 | G27: 0 | H27: 0 | I27: 0
A28: 503 | B28: 05 | D28: 土地征迁补偿和安置支出 | G28: 0 | H28: 0 | I28: 0
A29: 503 | B29: 06 | D29: 设备购置 | G29: 90,000 | H29: 0 | I29: 90,000
A30: 503 | B30: 07 | D30: 大型修缮 | G30: 0 | H30: 0 | I30: 0
A31: 503 | B31: 99 | D31: 其他资本性支出 | G31: 0 | H31: 0 | I31: 0
A32: 504 | D32: 资本性支出（二） | E32: =F32 -> 0 | F32: =G32 -> 0 | G32: 0 | H32: 0 | I32: 0
A33: 504 | B33: 01 | D33: 房屋建筑物构建 | G33: 0 | H33: 0 | I33: 0
A34: 504 | B34: 02 | D34: 基础设施建设 | G34: 0 | H34: 0 | I34: 0
A35: 504 | B35: 03 | D35: 公务用车购置 | G35: 0 | H35: 0 | I35: 0
A36: 504 | B36: 04 | D36: 设备购置 | G36: 0 | H36: 0 | I36: 0
A37: 504 | B37: 05 | D37: 大型修缮 | G37: 0 | H37: 0 | I37: 0
A38: 504 | B38: 99 | D38: 其他资本性支出 | G38: 0 | H38: 0 | I38: 0
A39: 505 | D39: 对事业单位经常性补助 | E39: =F39 -> 0 | F39: =G39 -> 0 | G39: 0 | H39: 0 | I39: 0
A40: 505 | B40: 01 | D40: 工资福利支出 | G40: 0 | H40: 0 | I40: 0
A41: 505 | B41: 02 | D41: 商品和服务支出 | G41: 0 | H41: 0 | I41: 0
A42: 505 | B42: 99 | D42: 其他对事业单位补助 | G42: 0
A43: 506 | D43: 对事业单位资本性补助 | E43: =F43 -> 0 | F43: =G43 -> 0 | G43: 0 | H43: 0 | I43: 0
A44: 506 | B44: 01 | D44: 资本性支出（一） | G44: 0 | H44: 0 | I44: 0
A45: 506 | B45: 02 | D45: 资本性支出（二） | G45: 0 | H45: 0 | I45: 0
A46: 507 | D46: 对企业补助 | G46: 0
A47: 507 | B47: 01 | D47: 费用补贴 | G47: 0
A48: 507 | B48: 02 | D48: 利息补贴 | G48: 0
A49: 507 | B49: 99 | D49: 其他对企业补助 | G49: 0
A50: 508 | D50: 对企业资本性支出 | G50: 0
A51: 508 | B51: 01 | D51: 对企业资本性支出（一） | G51: 0
A52: 508 | B52: 02 | D52: 对企业资本性支出（二） | G52: 0
A53: 509 | D53: 对个人和家庭的补助 | E53: =F53 -> 209,300 | F53: =G53 -> 209,300 | G53: 209,300 | H53: 35,700 | I53: 173,600
A54: 509 | B54: 01 | D54: 社会福利和救助 | G54: 11,340 | H54: 11,340 | I54: 0
A55: 509 | B55: 02 | D55: 助学金 | G55: 0 | H55: 0 | I55: 0
A56: 509 | B56: 03 | D56: 个人农业生产补贴 | G56: 0 | H56: 0 | I56: 0
A57: 509 | B57: 05 | D57: 离退休费 | G57: 0 | H57: 0 | I57: 0
A58: 509 | B58: 99 | D58: 其他对个人和家庭补助 | G58: 197,960 | H58: 24,360 | I58: 173,600
A59: 510 | D59: 对社会保障基金补助 | F59: =G59 -> 0 | G59: 0
A60: 510 | B60: 02 | D60: 对社会保险基金补助 | F60: 0 | G60: 0
A61: 510 | B61: 03 | D61: 补充全国社会保障基金 | F61: 0 | G61: 0
A62: 511 | D62: 债务利息及费用支出 | F62: 0 | G62: 0
A63: 511 | B63: 01 | D63: 国内债务付息 | F63: 0 | G63: 0
A64: 511 | B64: 02 | D64: 国外债务付息 | F64: 0 | G64: 0
A65: 511 | B65: 03 | D65: 国内债务发行费用 | F65: 0 | G65: 0
A66: 511 | B66: 04 | D66: 国外债务发行费用 | F66: 0 | G66: 0
A67: 512 | D67: 债务还本支出 | F67: 0 | G67: 0
A68: 512 | B68: 01 | D68: 国内债务还本 | F68: 0 | G68: 0
A69: 512 | B69: 02 | D69: 国外债务还本 | F69: 0 | G69: 0
A70: 513 | D70: 转移性支出 | F70: 0 | G70: 0
A71: 513 | B71: 01 | D71: 上下级政府间转移性支出 | F71: 0 | G71: 0
A72: 513 | B72: 02 | D72: 援助其他地区支出 | F72: 0 | G72: =H72+I72 -> 0
A73: 513 | B73: 03 | D73: 债务转贷 | F73: 0 | G73: 0
A74: 513 | B74: 04 | D74: 调出资金 | F74: 0 | G74: 0
A75: 513 | B75: 05 | D75: 安排预算稳定调节基金 | F75: 0 | G75: 0
A76: 513 | B76: 06 | D76: 补充预算周转金 | F76: 0 | G76: 0
A77: 514 | D77: 预备费及预留 | F77: 0 | G77: 0
A78: 514 | B78: 01 | D78: 预备费 | F78: 0 | G78: 0
A79: 514 | B79: 02 | D79: 预留 | F79: 0 | G79: 0
A80: 599 | D80: 其他支出 | F80: 0 | G80: 0
A81: 599 | B81: 06 | D81: 赠与 | F81: 0 | G81: 0
A82: 599 | B82: 07 | D82: 国家赔偿费用支出 | F82: 0 | G82: 0
A83: 599 | B83: 08 | D83: 对民间非营利组织和群众性自治组织补贴 | F83: 0 | G83: 0
A84: 599 | B84: 99 | D84: 其他支出 | F84: 0 | G84: 0

Sheet 3
DH1: 表3
A2: 一般公共预算支出总表
DH3: 单位：元
A4: 项 目 | E4: 合计 | F4: 工资福利支出 | T4: 商品和服务支出 | AV4: 对个人和家庭的补助 | BI4: 债务利息及费用支出 | BN4: 资本性支出（基本建设） | CA4: 资本性支出 | CR4: 对企业补助（基本建设） | CU4: 对企业补助 | DA4: 对社会保障基金补助 | DD4: 其他支出
A5: 科目编码 | D5: 科目名称 | F5: 小计 | G5: 基本工资 | H5: 津贴补贴 | I5: 奖金 | J5: 伙食补助费 | K5: 绩效工资 | L5: 机关事业单位基本养老保险缴费 | M5: 职业年金缴费 | N5: 职工基本医疗保险缴费 | O5: 公务员医疗补助缴费 | P5: 其他社会保障缴费 | Q5: 住房公积金 | R5: 医疗费 | S5: 其他工资福利支出 | T5: 小计 | U5: 办公费 | V5: 印刷费 | W5: 咨询费 | X5: 手续费 | Y5: 水费 | Z5: 电费 | AA5: 邮电费 | AB5: 取暖费 | AC5: 物业管理费 | AD5: 差旅费 | AE5: 因公出国（境）费用 | AF5: 维修（护）费 | AG5: 租赁费 | AH5: 会议费 | AI5: 培训费 | AJ5: 公务接待费 | AK5: 专用材料费 | AL5: 被装购置费 | AM5: 专用燃料费 | AN5: 劳务费 | AO5: 委托业务费 | AP5: 工会经费 | AQ5: 福利费 | AR5: 公务用车运行维护费 | AS5: 其他交通费用 | AT5: 税金及附加费用 | AU5: 其他商品和服务支出 | AV5: 小计 | AW5: 离休费 | AX5: 退休费 | AY5: 退职(役费 | AZ5: 抚恤金 | BA5: 生活补助 | BB5: 救济费 | BC5: 医疗费补助 | BD5: 助学金 | BE5: 奖励金 | BF5: 个人农业生产补贴 | BG5: 其他对个人和家庭的补助支出 | BI5: 小计 | BJ5: 国内债务付息 | BK5: 国外债务付息 | BL5: 国内债务发行费用 | BM5: 国外债务发行费用 | BN5: 小计 | BO5: 房屋建筑物购建 | BP5: 办公设备购置 | BQ5: 专用设备购置 | BR5: 基础设施建设 | BS5: 大型修缮 | BT5: 信息网络及软件购置更新 | BU5: 物资储备 | BV5: 公务用车购置 | BW5: 其他交通工具购置 | BX5: 文物和陈列品购置 | BY5: 无形资产购置 | BZ5: 其他基本建设支出 | CA5: 小计 | CB5: 房屋建筑物购建 | CC5: 办公设备购置 | CD5: 专用设备购置 | CE5: 基础设施建设 | CF5: 大型修缮 | CG5: 信息网络及软件购置更新 | CH5: 物资储备 | CI5: 土地补偿 | CJ5: 安置补助 | CK5: 地上附着物和青苗补偿 | CL5: 拆迁补偿 | CM5: 公务用车购置 | CN5: 其他交通工具购置 | CO5: 文物和陈列品购置 | CP5: 无形资产购置 | CQ5: 其他资本性支出 | CR5: 小计 | CS5: 资本金注入 | CT5: 其他对企业补助 | CU5: 小计 | CV5: 资本金注入 | CW5: 政府投资基金股权投资 | CX5: 费用补贴 | CY5: 利息补贴 | CZ5: 其他对企业补助 | DA5: 小计 | DB5: 对社会保障基金补助 | DC5: 补充全国社会保障基金 | DD5: 小计 | DE5: 预备费 | DF5: 国家赔偿费用支出 | DG5: 对民间非营利组织和群众性自治组 | DH5: 其他支出
A6: 类 | B6: 款 | C6: 项
A7: ** | B7: ** | C7: ** | D7: ** | E7: 1 | F7: 2 | G7: 3 | H7: 4 | I7: 5 | J7: 6 | K7: 7 | L7: 8 | M7: 9 | N7: 10 | O7: 11 | P7: 12 | Q7: 13 | R7: 14 | S7: 15 | T7: 16 | U7: 17 | V7: 18 | W7: 19 | X7: 20 | Y7: 21 | Z7: 22 | AA7: 23 | AB7: 24 | AC7: 25 | AD7: 26 | AE7: 27 | AF7: 28 | AG7: 29 | AH7: 30 | AI7: 31 | AJ7: 32 | AK7: 33 | AL7: 34 | AM7: 35 | AN7: 36 | AO7: 37 | AP7: 38 | AQ7: 39 | AR7: 40 | AS7: 41 | AT7: 42 | AU7: 43 | AV7: 44 | AW7: 45 | AX7: 46 | AY7: 47 | AZ7: 48 | BA7: 49 | BB7: 50 | BC7: 51 | BD7: 52 | BE7: 53 | BF7: 54 | BG7: 55 | BH7: 56 | BI7: 57 | BJ7: 58 | BK7: 59 | BL7: 60 | BM7: 61 | BN7: 62 | BO7: 63 | BP7: 64 | BQ7: 65 | BR7: 66 | BS7: 67 | BT7: 68 | BU7: 69 | BV7: 70 | BW7: 71 | BX7: 72 | BY7: 72 | BZ7: 74 | CA7: 75 | CB7: 76 | CC7: 77 | CD7: 78 | CE7: 79 | CF7: 80 | CG7: 81 | CH7: 82 | CI7: 83 | CJ7: 84 | CK7: 85 | CL7: 86 | CM7: 87 | CN7: 88 | CO7: 89 | CP7: 90 | CQ7: 91 | CR7: 92 | CS7: 93 | CT7: 94 | CU7: 95 | CV7: 96 | CW7: 97 | CX7: 98 | CY7: 99 | CZ7: 100 | DA7: 101 | DB7: 102 | DC7: 103 | DD7: 104 | DE7: 105 | DF7: 106 | DG7: 107 | DH7: 108
D8: 合计 | E8: 11,104,310 | F8: 6,770,318 | G8: 2,469,660 | H8: 1,292,520 | I8: 0 | J8: 345,520 | K8: 468,720 | L8: 874,350 | M8: 0 | N8: 354,125 | O8: 0 | P8: 16,416 | Q8: 524,607 | R8: 0 | S8: 424,400 | T8: 4,034,692 | U8: 381,984 | V8: 150,000 | W8: 100,000 | X8: 0 | Y8: 0 | Z8: 0 | AA8: 140,000 | AB8: 0 | AC8: 30,000 | AD8: 1,494,800 | AE8: 20,000 | AF8: 280,000 | AG8: 50,000 | AH8: 107,400 | AI8: 5,000 | AJ8: 108,000 | AK8: 0 | AL8: 0 | AM8: 0 | AN8: 50,000 | AO8: 0 | AP8: 392,309 | AQ8: 86,439 | AR8: 80,000 | AS8: 418,760 | AT8: 0 | AU8: 140,000 | AV8: 209,300 | AW8: 0 | AX8: 0 | AY8: 0 | AZ8: 0 | BA8: 11,340 | BB8: 0 | BC8: 0 | BD8: 0 | BE8: 0 | BF8: 0 | BG8: 23,100 | BH8: 174,860 | BI8: 0 | BJ8: 0 | BK8: 0 | BL8: 0 | BM8: 0 | BN8: 0 | BO8: 0 | BP8: 0 | BQ8: 0 | BR8: 0 | BS8: 0 | BT8: 0 | BU8: 0 | BV8: 0 | BW8: 0 | BX8: 0 | BY8: 0 | BZ8: 0 | CA8: 90,000 | CB8: 0 | CC8: 40,000 | CD8: 0 | CE8: 0 | CF8: 0 | CG8: 50,000 | CH8: 0 | CI8: 0 | CJ8: 0 | CK8: 0 | CL8: 0 | CM8: 0 | CN8: 0 | CO8: 0 | CP8: 0 | CQ8: 0 | CR8: 0 | CS8: 0 | CT8: 0 | CU8: 0 | CV8: 0 | CW8: 0 | CX8: 0 | CY8: 0 | CZ8: 0 | DA8: 0 | DB8: 0 | DC8: 0 | DD8: 0 | DE8: 0 | DF8: 0 | DG8: 0 | DH8: 0
A9: 208 | B9: 10 | C9: 02 | D9: 老年福利 | E9: 155,000 | F9: 0 | G9: 0 | H9: 0 | I9: 0 | J9: 0 | K9: 0 | L9: 0 | M9: 0 | N9: 0 | O9: 0 | P9: 0 | Q9: 0 | R9: 0 | S9: 0 | T9: 141,400 | U9: 18,000 | V9: 0 | W9: 0 | X9: 0 | Y9: 0 | Z9: 0 | AA9: 0 | AB9: 0 | AC9: 0 | AD9: 0 | AE9: 0 | AF9: 0 | AG9: 0 | AH9: 54,400 | AI9: 0 | AJ9: 0 | AK9: 0 | AL9: 0 | AM9: 0 | AN9: 0 | AO9: 0 | AP9: 0 | AQ9: 0 | AR9: 0 | AS9: 0 | AT9: 0 | AU9: 69,000 | AV9: 13,600 | AW9: 0 | AX9: 0 | AY9: 0 | AZ9: 0 | BA9: 0 | BB9: 0 | BC9: 0 | BD9: 0 | BE9: 0 | BF9: 0 | BG9: 0 | BH9: 13,600 | BI9: 0 | BJ9: 0 | BK9: 0 | BL9: 0 | BM9: 0 | BN9: 0 | BO9: 0 | BP9: 0 | BQ9: 0 | BR9: 0 | BS9: 0 | BT9: 0 | BU9: 0 | BV9: 0 | BW9: 0 | BX9: 0 | BY9: 0 | BZ9: 0 | CA9: 0 | CB9: 0 | CC9: 0 | CD9: 0 | CE9: 0 | CF9: 0 | CG9: 0 | CH9: 0 | CI9: 0 | CJ9: 0 | CK9: 0 | CL9: 0 | CM9: 0 | CN9: 0 | CO9: 0 | CP9: 0 | CQ9: 0 | CR9: 0 | CS9: 0 | CT9: 0 | CU9: 0 | CV9: 0 | CW9: 0 | CX9: 0 | CY9: 0 | CZ9: 0 | DA9: 0 | DB9: 0 | DC9: 0 | DD9: 0 | DE9: 0 | DF9: 0 | DG9: 0 | DH9: 0
A10: 201 | B10: 03 | C10: 02 | D10: 一般行政管理事务（政府办公厅（室）及相关机构事务） | E10: 3,016,000 | F10: 0 | G10: 0 | H10: 0 | I10: 0 | J10: 0 | K10: 0 | L10: 0 | M10: 0 | N10: 0 | O10: 0 | P10: 0 | Q10: 0 | R10: 0 | S10: 0 | T10: 2,926,000 | U10: 302,000 | V10: 150,000 | W10: 100,000 | X10: 0 | Y10: 0 | Z10: 0 | AA10: 140,000 | AB10: 0 | AC10: 30,000 | AD10: 1,438,000 | AE10: 20,000 | AF10: 280,000 | AG10: 50,000 | AH10: 50,000 | AI10: 5,000 | AJ10: 108,000 | AK10: 0 | AL10: 0 | AM10: 0 | AN10: 50,000 | AO10: 0 | AP10: 0 | AQ10: 0 | AR10: 80,000 | AS10: 58,000 | AT10: 0 | AU10: 65,000 | AV10: 0 | AW10: 0 | AX10: 0 | AY10: 0 | AZ10: 0 | BA10: 0 | BB10: 0 | BC10: 0 | BD10: 0 | BE10: 0 | BF10: 0 | BG10: 0 | BH10: 0 | BI10: 0 | BJ10: 0 | BK10: 0 | BL10: 0 | BM10: 0 | BN10: 0 | BO10: 0 | BP10: 0 | BQ10: 0 | BR10: 0 | BS10: 0 | BT10: 0 | BU10: 0 | BV10: 0 | BW10: 0 | BX10: 0 | BY10: 0 | BZ10: 0 | CA10: 90,000 | CB10: 0 | CC10: 40,000 | CD10: 0 | CE10: 0 | CF10: 0 | CG10: 50,000 | CH10: 0 | CI10: 0 | CJ10: 0 | CK10: 0 | CL10: 0 | CM10: 0 | CN10: 0 | CO10: 0 | CP10: 0 | CQ10: 0 | CR10: 0 | CS10: 0 | CT10: 0 | CU10: 0 | CV10: 0 | CW10: 0 | CX10: 0 | CY10: 0 | CZ10: 0 | DA10: 0 | DB10: 0 | DC10: 0 | DD10: 0 | DE10: 0 | DF10: 0 | DG10: 0 | DH10: 0
A11: 208 | B11: 05 | C11: 05 | D11: 机关事业单位基本养老保险缴费支出 | E11: 874,350 | F11: 874,350 | G11: 0 | H11: 0 | I11: 0 | J11: 0 | K11: 0 | L11: 874,350 | M11: 0 | N11: 0 | O11: 0 | P11: 0 | Q11: 0 | R11: 0 | S11: 0 | T11: 0 | U11: 0 | V11: 0 | W11: 0 | X11: 0 | Y11: 0 | Z11: 0 | AA11: 0 | AB11: 0 | AC11: 0 | AD11: 0 | AE11: 0 | AF11: 0 | AG11: 0 | AH11: 0 | AI11: 0 | AJ11: 0 | AK11: 0 | AL11: 0 | AM11: 0 | AN11: 0 | AO11: 0 | AP11: 0 | AQ11: 0 | AR11: 0 | AS11: 0 | AT11: 0 | AU11: 0 | AV11: 0 | AW11: 0 | AX11: 0 | AY11: 0 | AZ11: 0 | BA11: 0 | BB11: 0 | BC11: 0 | BD11: 0 | BE11: 0 | BF11: 0 | BG11: 0 | BH11: 0 | BI11: 0 | BJ11: 0 | BK11: 0 | BL11: 0 | BM11: 0 | BN11: 0 | BO11: 0 | BP11: 0 | BQ11: 0 | BR11: 0 | BS11: 0 | BT11: 0 | BU11: 0 | BV11: 0 | BW11: 0 | BX11: 0 | BY11: 0 | BZ11: 0 | CA11: 0 | CB11: 0 | CC11: 0 | CD11: 0 | CE11: 0 | CF11: 0 | CG11: 0 | CH11: 0 | CI11: 0 | CJ11: 0 | CK11: 0 | CL11: 0 | CM11: 0 | CN11: 0 | CO11: 0 | CP11: 0 | CQ11: 0 | CR11: 0 | CS11: 0 | CT11: 0 | CU11: 0 | CV11: 0 | CW11: 0 | CX11: 0 | CY11: 0 | CZ11: 0 | DA11: 0 | DB11: 0 | DC11: 0 | DD11: 0 | DE11: 0 | DF11: 0 | DG11: 0 | DH11: 0
A12: 210 | B12: 11 | C12: 02 | D12: 事业单位医疗 | E12: 42,545 | F12: 42,545 | G12: 0 | H12: 0 | I12: 0 | J12: 0 | K12: 0 | L12: 0 | M12: 0 | N12: 42,545 | O12: 0 | P12: 0 | Q12: 0 | R12: 0 | S12: 0 | T12: 0 | U12: 0 | V12: 0 | W12: 0 | X12: 0 | Y12: 0 | Z12: 0 | AA12: 0 | AB12: 0 | AC12: 0 | AD12: 0 | AE12: 0 | AF12: 0 | AG12: 0 | AH12: 0 | AI12: 0 | AJ12: 0 | AK12: 0 | AL12: 0 | AM12: 0 | AN12: 0 | AO12: 0 | AP12: 0 | AQ12: 0 | AR12: 0 | AS12: 0 | AT12: 0 | AU12: 0 | AV12: 0 | AW12: 0 | AX12: 0 | AY12: 0 | AZ12: 0 | BA12: 0 | BB12: 0 | BC12: 0 | BD12: 0 | BE12: 0 | BF12: 0 | BG12: 0 | BH12: 0 | BI12: 0 | BJ12: 0 | BK12: 0 | BL12: 0 | BM12: 0 | BN12: 0 | BO12: 0 | BP12: 0 | BQ12: 0 | BR12: 0 | BS12: 0 | BT12: 0 | BU12: 0 | BV12: 0 | BW12: 0 | BX12: 0 | BY12: 0 | BZ12: 0 | CA12: 0 | CB12: 0 | CC12: 0 | CD12: 0 | CE12: 0 | CF12: 0 | CG12: 0 | CH12: 0 | CI12: 0 | CJ12: 0 | CK12: 0 | CL12: 0 | CM12: 0 | CN12: 0 | CO12: 0 | CP12: 0 | CQ12: 0 | CR12: 0 | CS12: 0 | CT12: 0 | CU12: 0 | CV12: 0 | CW12: 0 | CX12: 0 | CY12: 0 | CZ12: 0 | DA12: 0 | DB12: 0 | DC12: 0 | DD12: 0 | DE12: 0 | DF12: 0 | DG12: 0 | DH12: 0
A13: 210 | B13: 11 | C13: 01 | D13: 行政单位医疗 | E13: 311,580 | F13: 311,580 | G13: 0 | H13: 0 | I13: 0 | J13: 0 | K13: 0 | L13: 0 | M13: 0 | N13: 311,580 | O13: 0 | P13: 0 | Q13: 0 | R13: 0 | S13: 0 | T13: 0 | U13: 0 | V13: 0 | W13: 0 | X13: 0 | Y13: 0 | Z13: 0 | AA13: 0 | AB13: 0 | AC13: 0 | AD13: 0 | AE13: 0 | AF13: 0 | AG13: 0 | AH13: 0 | AI13: 0 | AJ13: 0 | AK13: 0 | AL13: 0 | AM13: 0 | AN13: 0 | AO13: 0 | AP13: 0 | AQ13: 0 | AR13: 0 | AS13: 0 | AT13: 0 | AU13: 0 | AV13: 0 | AW13: 0 | AX13: 0 | AY13: 0 | AZ13: 0 | BA13: 0 | BB13: 0 | BC13: 0 | BD13: 0 | BE13: 0 | BF13: 0 | BG13: 0 | BH13: 0 | BI13: 0 | BJ13: 0 | BK13: 0 | BL13: 0 | BM13: 0 | BN13: 0 | BO13: 0 | BP13: 0 | BQ13: 0 | BR13: 0 | BS13: 0 | BT13: 0 | BU13: 0 | BV13: 0 | BW13: 0 | BX13: 0 | BY13: 0 | BZ13: 0 | CA13: 0 | CB13: 0 | CC13: 0 | CD13: 0 | CE13: 0 | CF13: 0 | CG13: 0 | CH13: 0 | CI13: 0 | CJ13: 0 | CK13: 0 | CL13: 0 | CM13: 0 | CN13: 0 | CO13: 0 | CP13: 0 | CQ13: 0 | CR13: 0 | CS13: 0 | CT13: 0 | CU13: 0 | CV13: 0 | CW13: 0 | CX13: 0 | CY13: 0 | CZ13: 0 | DA13: 0 | DB13: 0 | DC13: 0 | DD13: 0 | DE13: 0 | DF13: 0 | DG13: 0 | DH13: 0
A14: 208 | B14: 99 | C14: 01 | D14: 其他社会保障和就业支出 | E14: 16,416 | F14: 16,416 | G14: 0 | H14: 0 | I14: 0 | J14: 0 | K14: 0 | L14: 0 | M14: 0 | N14: 0 | O14: 0 | P14: 16,416 | Q14: 0 | R14: 0 | S14: 0 | T14: 0 | U14: 0 | V14: 0 | W14: 0 | X14: 0 | Y14: 0 | Z14: 0 | AA14: 0 | AB14: 0 | AC14: 0 | AD14: 0 | AE14: 0 | AF14: 0 | AG14: 0 | AH14: 0 | AI14: 0 | AJ14: 0 | AK14: 0 | AL14: 0 | AM14: 0 | AN14: 0 | AO14: 0 | AP14: 0 | AQ14: 0 | AR14: 0 | AS14: 0 | AT14: 0 | AU14: 0 | AV14: 0 | AW14: 0 | AX14: 0 | AY14: 0 | AZ14: 0 | BA14: 0 | BB14: 0 | BC14: 0 | BD14: 0 | BE14: 0 | BF14: 0 | BG14: 0 | BH14: 0 | BI14: 0 | BJ14: 0 | BK14: 0 | BL14: 0 | BM14: 0 | BN14: 0 | BO14: 0 | BP14: 0 | BQ14: 0 | BR14: 0 | BS14: 0 | BT14: 0 | BU14: 0 | BV14: 0 | BW14: 0 | BX14: 0 | BY14: 0 | BZ14: 0 | CA14: 0 | CB14: 0 | CC14: 0 | CD14: 0 | CE14: 0 | CF14: 0 | CG14: 0 | CH14: 0 | CI14: 0 | CJ14: 0 | CK14: 0 | CL14: 0 | CM14: 0 | CN14: 0 | CO14: 0 | CP14: 0 | CQ14: 0 | CR14: 0 | CS14: 0 | CT14: 0 | CU14: 0 | CV14: 0 | CW14: 0 | CX14: 0 | CY14: 0 | CZ14: 0 | DA14: 0 | DB14: 0 | DC14: 0 | DD14: 0 | DE14: 0 | DF14: 0 | DG14: 0 | DH14: 0
A15: 201 | B15: 03 | C15: 99 | D15: 其他政府办公厅（室）及相关机构事务支出 | E15: 510,000 | F15: 0 | G15: 0 | H15: 0 | I15: 0 | J15: 0 | K15: 0 | L15: 0 | M15: 0 | N15: 0 | O15: 0 | P15: 0 | Q15: 0 | R15: 0 | S15: 0 | T15: 350,000 | U15: 0 | V15: 0 | W15: 0 | X15: 0 | Y15: 0 | Z15: 0 | AA15: 0 | AB15: 0 | AC15: 0 | AD15: 0 | AE15: 0 | AF15: 0 | AG15: 0 | AH15: 0 | AI15: 0 | AJ15: 0 | AK15: 0 | AL15: 0 | AM15: 0 | AN15: 0 | AO15: 0 | AP15: 350,000 | AQ15: 0 | AR15: 0 | AS15: 0 | AT15: 0 | AU15: 0 | AV15: 160,000 | AW15: 0 | AX15: 0 | AY15: 0 | AZ15: 0 | BA15: 0 | BB15: 0 | BC15: 0 | BD15: 0 | BE15: 0 | BF15: 0 | BG15: 0 | BH15: 160,000 | BI15: 0 | BJ15: 0 | BK15: 0 | BL15: 0 | BM15: 0 | BN15: 0 | BO15: 0 | BP15: 0 | BQ15: 0 | BR15: 0 | BS15: 0 | BT15: 0 | BU15: 0 | BV15: 0 | BW15: 0 | BX15: 0 | BY15: 0 | BZ15: 0 | CA15: 0 | CB15: 0 | CC15: 0 | CD15: 0 | CE15: 0 | CF15: 0 | CG15: 0 | CH15: 0 | CI15: 0 | CJ15: 0 | CK15: 0 | CL15: 0 | CM15: 0 | CN15: 0 | CO15: 0 | CP15: 0 | CQ15: 0 | CR15: 0 | CS15: 0 | CT15: 0 | CU15: 0 | CV15: 0 | CW15: 0 | CX15: 0 | CY15: 0 | CZ15: 0 | DA15: 0 | DB15: 0 | DC15: 0 | DD15: 0 | DE15: 0 | DF15: 0 | DG15: 0 | DH15: 0
A16: 221 | B16: 02 | C16: 01 | D16: 住房公积金 | E16: 524,607 | F16: 524,607 | G16: 0 | H16: 0 | I16: 0 | J16: 0 | K16: 0 | L16: 0 | M16: 0 | N16: 0 | O16: 0 | P16: 0 | Q16: 524,607 | R16: 0 | S16: 0 | T16: 0 | U16: 0 | V16: 0 | W16: 0 | X16: 0 | Y16: 0 | Z16: 0 | AA16: 0 | AB16: 0 | AC16: 0 | AD16: 0 | AE16: 0 | AF16: 0 | AG16: 0 | AH16: 0 | AI16: 0 | AJ16: 0 | AK16: 0 | AL16: 0 | AM16: 0 | AN16: 0 | AO16: 0 | AP16: 0 | AQ16: 0 | AR16: 0 | AS16: 0 | AT16: 0 | AU16: 0 | AV16: 0 | AW16: 0 | AX16: 0 | AY16: 0 | AZ16: 0 | BA16: 0 | BB16: 0 | BC16: 0 | BD16: 0 | BE16: 0 | BF16: 0 | BG16: 0 | BH16: 0 | BI16: 0 | BJ16: 0 | BK16: 0 | BL16: 0 | BM16: 0 | BN16: 0 | BO16: 0 | BP16: 0 | BQ16: 0 | BR16: 0 | BS16: 0 | BT16: 0 | BU16: 0 | BV16: 0 | BW16: 0 | BX16: 0 | BY16: 0 | BZ16: 0 | CA16: 0 | CB16: 0 | CC16: 0 | CD16: 0 | CE16: 0 | CF16: 0 | CG16: 0 | CH16: 0 | CI16: 0 | CJ16: 0 | CK16: 0 | CL16: 0 | CM16: 0 | CN16: 0 | CO16: 0 | CP16: 0 | CQ16: 0 | CR16: 0 | CS16: 0 | CT16: 0 | CU16: 0 | CV16: 0 | CW16: 0 | CX16: 0 | CY16: 0 | CZ16: 0 | DA16: 0 | DB16: 0 | DC16: 0 | DD16: 0 | DE16: 0 | DF16: 0 | DG16: 0 | DH16: 0
A17: 201 | B17: 11 | C17: 05 | D17: 派驻派出机构 | E17: 63,000 | F17: 13,200 | G17: 0 | H17: 0 | I17: 0 | J17: 0 | K17: 0 | L17: 0 | M17: 0 | N17: 0 | O17: 0 | P17: 0 | Q17: 0 | R17: 0 | S17: 13,200 | T17: 49,800 | U17: 20,000 | V17: 0 | W17: 0 | X17: 0 | Y17: 0 | Z17: 0 | AA17: 0 | AB17: 0 | AC17: 0 | AD17: 16,800 | AE17: 0 | AF17: 0 | AG17: 0 | AH17: 3,000 | AI17: 0 | AJ17: 0 | AK17: 0 | AL17: 0 | AM17: 0 | AN17: 0 | AO17: 0 | AP17: 0 | AQ17: 0 | AR17: 0 | AS17: 10,000 | AT17: 0 | AU17: 0 | AV17: 0 | AW17: 0 | AX17: 0 | AY17: 0 | AZ17: 0 | BA17: 0 | BB17: 0 | BC17: 0 | BD17: 0 | BE17: 0 | BF17: 0 | BG17: 0 | BH17: 0 | BI17: 0 | BJ17: 0 | BK17: 0 | BL17: 0 | BM17: 0 | BN17: 0 | BO17: 0 | BP17: 0 | BQ17: 0 | BR17: 0 | BS17: 0 | BT17: 0 | BU17: 0 | BV17: 0 | BW17: 0 | BX17: 0 | BY17: 0 | BZ17: 0 | CA17: 0 | CB17: 0 | CC17: 0 | CD17: 0 | CE17: 0 | CF17: 0 | CG17: 0 | CH17: 0 | CI17: 0 | CJ17: 0 | CK17: 0 | CL17: 0 | CM17: 0 | CN17: 0 | CO17: 0 | CP17: 0 | CQ17: 0 | CR17: 0 | CS17: 0 | CT17: 0 | CU17: 0 | CV17: 0 | CW17: 0 | CX17: 0 | CY17: 0 | CZ17: 0 | DA17: 0 | DB17: 0 | DC17: 0 | DD17: 0 | DE17: 0 | DF17: 0 | DG17: 0 | DH17: 0
A18: 213 | B18: 05 | C18: 99 | D18: 其他扶贫支出 | E18: 40,000 | F18: 0 | G18: 0 | H18: 0 | I18: 0 | J18: 0 | K18: 0 | L18: 0 | M18: 0 | N18: 0 | O18: 0 | P18: 0 | Q18: 0 | R18: 0 | S18: 0 | T18: 40,000 | U18: 0 | V18: 0 | W18: 0 | X18: 0 | Y18: 0 | Z18: 0 | AA18: 0 | AB18: 0 | AC18: 0 | AD18: 40,000 | AE18: 0 | AF18: 0 | AG18: 0 | AH18: 0 | AI18: 0 | AJ18: 0 | AK18: 0 | AL18: 0 | AM18: 0 | AN18: 0 | AO18: 0 | AP18: 0 | AQ18: 0 | AR18: 0 | AS18: 0 | AT18: 0 | AU18: 0 | AV18: 0 | AW18: 0 | AX18: 0 | AY18: 0 | AZ18: 0 | BA18: 0 | BB18: 0 | BC18: 0 | BD18: 0 | BE18: 0 | BF18: 0 | BG18: 0 | BH18: 0 | BI18: 0 | BJ18: 0 | BK18: 0 | BL18: 0 | BM18: 0 | BN18: 0 | BO18: 0 | BP18: 0 | BQ18: 0 | BR18: 0 | BS18: 0 | BT18: 0 | BU18: 0 | BV18: 0 | BW18: 0 | BX18: 0 | BY18: 0 | BZ18: 0 | CA18: 0 | CB18: 0 | CC18: 0 | CD18: 0 | CE18: 0 | CF18: 0 | CG18: 0 | CH18: 0 | CI18: 0 | CJ18: 0 | CK18: 0 | CL18: 0 | CM18: 0 | CN18: 0 | CO18: 0 | CP18: 0 | CQ18: 0 | CR18: 0 | CS18: 0 | CT18: 0 | CU18: 0 | CV18: 0 | CW18: 0 | CX18: 0 | CY18: 0 | CZ18: 0 | DA18: 0 | DB18: 0 | DC18: 0 | DD18: 0 | DE18: 0 | DF18: 0 | DG18: 0 | DH18: 0
A19: 201 | B19: 03 | C19: 01 | D19: 行政运行（政府办公厅（室）及相关机构事务） | E19: 5,550,812 | F19: 4,987,620 | G19: 2,469,660 | H19: 1,292,520 | I19: 0 | J19: 345,520 | K19: 468,720 | L19: 0 | M19: 0 | N19: 0 | O19: 0 | P19: 0 | Q19: 0 | R19: 0 | S19: 411,200 | T19: 527,492 | U19: 41,984 | V19: 0 | W19: 0 | X19: 0 | Y19: 0 | Z19: 0 | AA19: 0 | AB19: 0 | AC19: 0 | AD19: 0 | AE19: 0 | AF19: 0 | AG19: 0 | AH19: 0 | AI19: 0 | AJ19: 0 | AK19: 0 | AL19: 0 | AM19: 0 | AN19: 0 | AO19: 0 | AP19: 42,309 | AQ19: 86,439 | AR19: 0 | AS19: 350,760 | AT19: 0 | AU19: 6,000 | AV19: 35,700 | AW19: 0 | AX19: 0 | AY19: 0 | AZ19: 0 | BA19: 11,340 | BB19: 0 | BC19: 0 | BD19: 0 | BE19: 0 | BF19: 0 | BG19: 23,100 | BH19: 1,260 | BI19: 0 | BJ19: 0 | BK19: 0 | BL19: 0 | BM19: 0 | BN19: 0 | BO19: 0 | BP19: 0 | BQ19: 0 | BR19: 0 | BS19: 0 | BT19: 0 | BU19: 0 | BV19: 0 | BW19: 0 | BX19: 0 | BY19: 0 | BZ19: 0 | CA19: 0 | CB19: 0 | CC19: 0 | CD19: 0 | CE19: 0 | CF19: 0 | CG19: 0 | CH19: 0 | CI19: 0 | CJ19: 0 | CK19: 0 | CL19: 0 | CM19: 0 | CN19: 0 | CO19: 0 | CP19: 0 | CQ19: 0 | CR19: 0 | CS19: 0 | CT19: 0 | CU19: 0 | CV19: 0 | CW19: 0 | CX19: 0 | CY19: 0 | CZ19: 0 | DA19: 0 | DB19: 0 | DC19: 0 | DD19: 0 | DE19: 0 | DF19: 0 | DG19: 0 | DH19: 0

Sheet 3-1
F1: 表3-1
A2: 一般公共预算基本支出预算表
F3: 单位：元
A4: 经济分类科目 | D4: 基本支出
A5: 科目编码 | C5: 科目名称 | D5: 合计 | E5: 人员经费 | F5: 公用经费
A6: 类 | B6: 款
A7: ** | B7: ** | C7: ** | D7: 1 | E7: 2 | F7: 3
C8: 总计 | D8: =E8+F8 -> 7,360,310 | E8: =E9+E23+E51+E64+E68+E74 -> 6,792,818 | F8: =F9+F23+F51+F64+F68+F74 -> 567,492
C9: 工资福利支出 | D9: =SUM(D10:D22) -> 6,757,118 | E9: =SUM(E10:E22) -> 6,757,118 | F9: =SUM(F10:F22) -> 0
A10: 301 | B10: 01 | C10: 基本工资 | D10: =E10+F10 -> 2,469,660 | E10: 2,469,660
A11: 301 | B11: 02 | C11: 津贴补贴 | D11: 1,292,520 | E11: 1,292,520
A12: 301 | B12: 03 | C12: 奖金 | D12: 0 | E12: 0
A13: 301 | B13: 06 | C13: 伙食补助 | D13: 345,520 | E13: 345,520
A14: 301 | B14: 07 | C14: 绩效工资 | D14: 468,720 | E14: 468,720
A15: 301 | B15: 08 | C15: 机关事业单位基本养老保险缴费 | D15: 874,350 | E15: 874,350
A16: 301 | B16: 09 | C16: 职业年金缴费 | D16: 0 | E16: 0
A17: 301 | B17: 10 | C17: 职工基本医疗保险缴费 | D17: 354,125 | E17: 354,125
A18: 301 | B18: 11 | C18: 公务员医疗补助缴费 | D18: 0 | E18: 0
A19: 301 | B19: 12 | C19: 其他社会保障缴费 | D19: 16,416 | E19: 16,416
A20: 301 | B20: 13 | C20: 住房公积金 | D20: 524,607 | E20: 524,607
A21: 301 | B21: 14 | C21: 医疗费 | D21: 0 | E21: 0
A22: 301 | B22: 99 | C22: 其他工资福利支出 | D22: 411,200 | E22: 411,200
C23: 商品和服务支出 | D23: =SUM(D24:D50) -> 567,492 | E23: =SUM(E24:E50) -> 0 | F23: =SUM(F24:F50) -> 567,492
A24: 302 | B24: 01 | C24: 办公费 | D24: =E24+F24 -> 41,984 | F24: 41,984
A25: 302 | B25: 02 | C25: 印刷费 | D25: 0 | F25: 0
A26: 302 | B26: 03 | C26: 咨询费 | D26: 0 | F26: 0
A27: 302 | B27: 04 | C27: 手续费 | D27: 0 | F27: 0
A28: 302 | B28: 05 | C28: 水费 | D28: 0 | F28: 0
A29: 302 | B29: 06 | C29: 电费 | D29: 0 | F29: 0
A30: 302 | B30: 07 | C30: 邮电费 | D30: 0 | F30: 0
A31: 30 | B31: 08 | C31: 取暖费 | D31: 0 | F31: 0
A32: 302 | B32: 09 | C32: 差率费 | D32: 0 | F32: 0
A33: 302 | B33: 11 | C33: 差旅费 | D33: 40,000 | F33: 40,000
A34: 302 | B34: 12 | C34: 因公出国 | D34: 0 | F34: 0
A35: 302 | B35: 13 | C35: 维修(护)费 | D35: 0 | F35: 0
A36: 302 | B36: 14 | C36: 维修维护费 | D36: 0 | F36: 0
A37: 302 | B37: 15 | C37: 会议费 | D37: 0 | F37: 0
A38: 302 | B38: 16 | C38: 培训费 | D38: 0 | F38: 0
A39: 302 | B39: 17 | C39: 公务接待费 | D39: 0 | F39: 0
A40: 302 | B40: 18 | C40: 专用材料费 | D40: 0 | F40: 0
A41: 302 | B41: 24 | C41: 被装购置费 | D41: 0 | F41: 0
A42: 302 | B42: 25 | C42: 专用燃料费 | D42: 0 | F42: 0
A43: 302 | B43: 26 | C43: 劳务费 | D43: 0 | F43: 0
A44: 302 | B44: 27 | C44: 委托业务费 | D44: 0 | F44: 0
A45: 302 | B45: 28 | C45: 工会经费 | D45: 42,309 | F45: 42,309
A46: 302 | B46: 29 | C46: 福利费 | D46: 86,439 | F46: 86,439
A47: 302 | B47: 31 | C47: 公务用车运行维护费 | D47: 0 | F47: 0
A48: 302 | B48: 39 | C48: 其他交通费用 | D48: 350,760 | F48: 350,760
A49: 302 | B49: 40 | C49: 税金及附加 | D49: 0 | F49: 0
A50: 302 | B50: 99 | C50: 其他商品和服务支出 | D50: 6,000 | F50: 6,000
C51: 对个人和家庭的补助 | D51: =D52+D53+D54+D55+D56+D57+D58+D59+D60+D61+D63 -> 35,700 | E51: =E52+E53+E54+E55+E56+E57+E58+E59+E60+E61+E63 -> 35,700 | F51: =F52+F53+F54+F55+F56+F57+F58+F59+F60+F61+F63 -> 0
A52: 303 | B52: 01 | C52: 离休费 | D52: =E52+F52 -> 0 | E52: 0
A53: 303 | B53: 02 | C53: 退休费 | D53: 0 | E53: 0
A54: 303 | B54: 03 | C54: 退职退役费 | D54: 0 | E54: 0
A55: 303 | B55: 04 | C55: 抚恤金 | D55: 0 | E55: 0
A56: 303 | B56: 05 | C56: 生活补助 | D56: 11,340 | E56: 11,340
A57: 303 | B57: 06 | C57: 救济费 | D57: 0 | E57: 0
A58: 303 | B58: 07 | C58: 医疗费补助 | D58: 0 | E58: 0
A59: 303 | B59: 08 | C59: 助学金 | D59: 0 | E59: 0
A60: 303 | B60: 09 | C60: 奖励金 | D60: 0 | E60: 0
A61: 303 | B61: 10 | C61: 个人农业生产补贴 | D61: 0 | E61: 0
A62: 303 | B62: 99 | C62: 体检费 | D62: 23,100 | E62: 23,100
A63: 303 | B63: 99 | C63: 其他对个人和家庭的补助支出 | D63: 24,360 | E63: 24,360
C64: 资本性支出(基本建设) | D64: =SUM(D65:D67) -> 0 | E64: =SUM(E65:E67) -> 0 | F64: =SUM(F65:F67) -> 0
A65: 309 | B65: 02 | C65: 办公设备购置 | D65: =E65+F65 -> 0 | F65: 0
A66: 309 | B66: 05 | C66: 基础设施建设 | D66: =E66+F66 -> 0 | F66: 0
A67: 309 | B67: 06 | C67: 大型修缮 | D67: =E67+F67 -> 0 | F67: 0
C68: 资本性支出 | D68: =SUM(D69:D73) -> 0 | E68: =SUM(E69:E73) -> 0 | F68: =SUM(F69:F73) -> 0
A69: 310 | B69: 02 | C69: 办公设备购置 | D69: =E69+F69 -> 0 | F69: 0
A70: 310 | B70: 03 | C70: 专用设备购置 | D70: =E70+F70 -> 0 | F70: 0
A71: 310 | B71: 05 | C71: 基础设施建设 | D71: =E71+F71 -> 0 | F71: 0
A72: 310 | B72: 06 | C72: 大型修缮 | D72: =E72+F72 -> 0 | F72: 0
A73: 310 | B73: 19 | C73: 其他交通工具购置 | D73: =E73+F73 -> 0 | F73: 0
C74: 其他支出 | D74: =SUM(D75:D76) -> 0 | E74: =SUM(E75:E76) -> 0 | F74: =SUM(F75:F76) -> 0
A75: 399 | B75: 08 | C75: 对民间非盈利组织和群众性自治组织补助 | D75: =E75+F75 -> 0 | F75: 0
A76: 399 | B76: 99 | C76: 其他支出 | D76: =E76+F76 -> 0 | F76: 0

Sheet 3-2
F1: 表3-2
A2: 一般公共预算项目支出表
F3: 单位：元
A4: 项 目 | F4: 金额
A5: 科目编码 | D5: 单位代码 | E5: 单位名称 （项目）
A6: 类 | B6: 款 | C6: 项
A7: ** | B7: ** | C7: ** | D7: ** | E7: ** | F7: **
E8: 合计 | F8: 3,744,000
D9: 103101 | E9: 通川区政府办公室机关 | F9: 3,744,000
F10: 3,744,000
A11: 201 | B11: 03 | C11: 02 | D11: 103101 | E11: 城市幸福和谐社区调研经费 | F11: 36,000
A12: 201 | B12: 03 | C12: 02 | D12: 103101 | E12: 政府机关政务、事务运行 | F12: 2,980,000
A13: 201 | B13: 03 | C13: 99 | D13: 103101 | E13: 职工运动会参赛经费 | F13: 350,000
A14: 201 | B14: 03 | C14: 99 | D14: 103101 | E14: 节日慰问费 | F14: 160,000
A15: 201 | B15: 11 | C15: 05 | D15: 103101 | E15: 派驻纪检组工作经费 | F15: 63,000
A16: 208 | B16: 10 | C16: 02 | D16: 103101 | E16: 老年协会经费 | F16: 155,000

Sheet 3-3
H1: 表3-3
A2: 一般公共预算“三公”经费支出预算表
H3: 单位：元
A4: 单位编码 | B4: 单位名称 | C4: 当年财政拨款预算安排
C5: 合计 | D5: 因公出国（境）费用 | E5: 公务用车购置及运行费 | H5: 公务接待费
E6: 小计 | F6: 公务用车购置费 | G6: 公务用车运行费
A7: ** | B7: ** | C7: 1 | D7: 2 | E7: 3 | F7: 4 | G7: 5 | H7: 6
B8: 合计 | C8: 208,000 | D8: 20,000 | E8: 80,000 | F8: 0 | G8: 80,000 | H8: 108,000
A9: 103101 | C9: 208,000 | D9: 20,000 | E9: 80,000 | F9: 0 | G9: 80,000 | H9: 108,000
A10: 103101 | B10: 通川区政府办公室机关 | C10: 208,000 | D10: 20,000 | E10: 80,000 | F10: 0 | G10: 80,000 | H10: 108,000

Sheet 4
H1: 表4
A2: 政府性基金支出预算表
H3: 单位：元
A4: 项 目 | F4: 本年政府性基金预算支出
A5: 科目编码 | D5: 单位代码 | E5: 单位名称（科目） | F5: 合计 | G5: 基本支出 | H5: 项目支出
A6: 类 | B6: 款 | C6: 项

Sheet 4-1
H1: 表4-1
A2: 政府性基金预算“三公”经费支出预算表
H3: 单位：元
A4: 单位编码 | B4: 单位名称 | C4: 当年财政拨款预算安排
C5: 合计 | D5: 因公出国（境）费用 | E5: 公务用车购置及运行费 | H5: 公务接待费
E6: 小计 | F6: 公务用车购置费 | G6: 公务用车运行费

Sheet 5
H1: 表5
A2: 国有资本经营预算支出预算表
H3: 单位：元
A4: 项 目 | F4: 本年国有资本经营预算支出
A5: 科目编码 | D5: 单位代码 | E5: 单位名称（科目） | F5: 合计 | G5: 基本支出 | H5: 项目支出
A6: 类 | B6: 款 | C6: 项
